[Event "*** SCC Grand Prix: Titled Tuesday Blitz"]
[Site "Chess.com"]
[Date "2020.08.04"]
[Round "2"]
[White "Roza_Idrisova"]
[Black "mortngabriel"]
[Result "1-0"]
[WhiteElo "2250"]
[BlackElo "2427"]
[TimeControl "180+1"]
[EndTime "14:02:29 PDT"]
[Termination "Roza_Idrisova won by checkmate"]

1. d4 {[%clk 0:03:00.9]} 1... Nf6 {[%clk 0:02:18.9]} 2. Nf3 {[%clk 0:03:00.8]}
2... c5 {[%clk 0:01:55.7]} 3. d5 {[%clk 0:02:59.8]} 3... b5 {[%clk 0:01:55.9]}
4. e3 {[%clk 0:02:58.6]} 4... a6 {[%clk 0:01:55.5]} 5. c4 {[%clk 0:02:58]} 5...
b4 {[%clk 0:01:55.6]} 6. b3 {[%clk 0:02:57.2]} 6... d6 {[%clk 0:01:55.2]} 7. Bb2
{[%clk 0:02:57.2]} 7... g6 {[%clk 0:01:55.6]} 8. Nbd2 {[%clk 0:02:56.7]} 8...
Bg7 {[%clk 0:01:56.1]} 9. e4 {[%clk 0:02:51.5]} 9... O-O {[%clk 0:01:56.6]} 10.
Bd3 {[%clk 0:02:48.9]} 10... Bg4 {[%clk 0:01:57.2]} 11. h3 {[%clk 0:02:47.2]}
11... Bxf3 {[%clk 0:01:57.5]} 12. Nxf3 {[%clk 0:02:47.1]} 12... a5 {[%clk
0:01:58.4]} 13. a4 {[%clk 0:02:41.8]} 13... bxa3 {[%clk 0:01:53]} 14. Rxa3
{[%clk 0:02:41.1]} 14... Na6 {[%clk 0:01:40.7]} 15. O-O {[%clk 0:02:40.3]} 15...
Nb4 {[%clk 0:01:40.8]} 16. Bb1 {[%clk 0:02:38.5]} 16... Qb6 {[%clk 0:01:35.9]}
17. e5 {[%clk 0:02:37.2]} 17... Nd7 {[%clk 0:01:33.1]} 18. Re1 {[%clk
0:02:36.6]} 18... Rfb8 {[%clk 0:01:32.1]} 19. Qd2 {[%clk 0:02:33.9]} 19... Nxe5
{[%clk 0:01:29.6]} 20. Nxe5 {[%clk 0:02:33.1]} 20... dxe5 {[%clk 0:01:27.7]} 21.
Bxe5 {[%clk 0:02:30.6]} 21... Bxe5 {[%clk 0:01:27.5]} 22. Rxe5 {[%clk
0:02:29.9]} 22... Qd6 {[%clk 0:01:25.5]} 23. Qe3 {[%clk 0:02:25.7]} 23... Rb7
{[%clk 0:01:17.8]} 24. f4 {[%clk 0:02:21.6]} 24... Rba7 {[%clk 0:01:08.9]} 25.
f5 {[%clk 0:02:11.9]} 25... Qf6 {[%clk 0:01:01]} 26. fxg6 {[%clk 0:02:09]} 26...
hxg6 {[%clk 0:01:00]} 27. Kh2 {[%clk 0:01:55]} 27... Kg7 {[%clk 0:00:55.1]} 28.
Re4 {[%clk 0:01:46]} 28... Rc7 {[%clk 0:00:54.5]} 29. Rf4 {[%clk 0:01:39.1]}
29... Qd6 {[%clk 0:00:54]} 30. Qg3 {[%clk 0:01:38.9]} 30... Rca7 {[%clk
0:00:36.6]} 31. Be4 {[%clk 0:01:32.3]} 31... a4 {[%clk 0:00:33.6]} 32. Rxa4
{[%clk 0:01:30.8]} 32... Rxa4 {[%clk 0:00:32.8]} 33. bxa4 {[%clk 0:01:30.9]}
33... Rxa4 {[%clk 0:00:33.3]} 34. h4 {[%clk 0:01:24.5]} 34... Ra8 {[%clk
0:00:31.3]} 35. Kh3 {[%clk 0:01:15.8]} 35... Rh8 {[%clk 0:00:30.7]} 36. Qc3+
{[%clk 0:01:04.3]} 36... f6 {[%clk 0:00:20.4]} 37. g3 {[%clk 0:01:02.9]} 37...
Qe5 {[%clk 0:00:16]} 38. Qf3 {[%clk 0:00:52.6]} 38... f5 {[%clk 0:00:13.8]} 39.
Bxf5 {[%clk 0:00:46.4]} 39... gxf5 {[%clk 0:00:12.9]} 40. Rxf5 {[%clk
0:00:46.3]} 40... Qa1 {[%clk 0:00:08.5]} 41. Qg4+ {[%clk 0:00:45]} 41... Kh7
{[%clk 0:00:05.7]} 42. Rh5# {[%clk 0:00:44.1]} 1-0

[Event "*** SCC Grand Prix: Titled Tuesday Blitz"]
[Site "Chess.com"]
[Date "2020.08.04"]
[Round "2"]
[White "Zurability"]
[Black "AbigailCabezas"]
[Result "1-0"]
[WhiteElo "2687"]
[BlackElo "1346"]
[TimeControl "180+1"]
[EndTime "14:02:33 PDT"]
[Termination "Zurability won by checkmate"]

1. c4 {[%clk 0:03:00.9]} 1... e6 {[%clk 0:02:58.1]} 2. Nc3 {[%clk 0:02:59.8]}
2... d6 {[%clk 0:02:53.9]} 3. d4 {[%clk 0:02:59.6]} 3... Ne7 {[%clk 0:02:52.6]}
4. Nf3 {[%clk 0:02:59.8]} 4... Nd7 {[%clk 0:02:50.9]} 5. e4 {[%clk 0:02:58.8]}
5... b6 {[%clk 0:02:49.9]} 6. Be2 {[%clk 0:02:55.9]} 6... Bb7 {[%clk 0:02:49.5]}
7. O-O {[%clk 0:02:54.7]} 7... Ng6 {[%clk 0:02:41.4]} 8. Be3 {[%clk 0:02:53.1]}
8... Be7 {[%clk 0:02:40.7]} 9. Qd2 {[%clk 0:02:51]} 9... O-O {[%clk 0:02:36.4]}
10. Bd3 {[%clk 0:02:42.1]} 10... c5 {[%clk 0:02:32.5]} 11. dxc5 {[%clk 0:02:41]}
11... bxc5 {[%clk 0:02:29.5]} 12. Bc2 {[%clk 0:02:37.5]} 12... e5 {[%clk
0:02:25]} 13. Nd5 {[%clk 0:02:27.6]} 13... Bxd5 {[%clk 0:02:21.7]} 14. Qxd5
{[%clk 0:02:28.5]} 14... Nb6 {[%clk 0:02:18.4]} 15. Qd3 {[%clk 0:02:26.5]} 15...
Nh4 {[%clk 0:02:10.9]} 16. Nxh4 {[%clk 0:02:20.3]} 16... Bxh4 {[%clk 0:02:10.4]}
17. Rad1 {[%clk 0:02:14.9]} 17... Be7 {[%clk 0:02:04.9]} 18. f4 {[%clk
0:02:14.7]} 18... f6 {[%clk 0:01:56.4]} 19. b4 {[%clk 0:01:51.2]} 19... Qc7
{[%clk 0:01:46.1]} 20. bxc5 {[%clk 0:01:30.5]} 20... dxc5 {[%clk 0:01:37.2]} 21.
Qc3 {[%clk 0:01:13.6]} 21... Bd6 {[%clk 0:01:28.2]} 22. g3 {[%clk 0:01:11]}
22... Rad8 {[%clk 0:01:20.4]} 23. Rd3 {[%clk 0:00:53]} 23... exf4 {[%clk
0:01:09.7]} 24. gxf4 {[%clk 0:00:51]} 24... Qf7 {[%clk 0:01:04.1]} 25. Rfd1
{[%clk 0:00:30.8]} 25... Qg6+ {[%clk 0:01:02.8]} 26. Kf2 {[%clk 0:00:27.1]}
26... Bc7 {[%clk 0:01:01.6]} 27. Rxd8 {[%clk 0:00:23.7]} 27... Rxd8 {[%clk
0:00:59.2]} 28. Rxd8+ {[%clk 0:00:23.2]} 28... Bxd8 {[%clk 0:00:59]} 29. Bxc5
{[%clk 0:00:21.4]} 29... Qh6 {[%clk 0:00:47.1]} 30. Qg3 {[%clk 0:00:18.5]} 30...
Nxc4 {[%clk 0:00:42.4]} 31. Bb3 {[%clk 0:00:18.5]} 31... Kh8 {[%clk 0:00:27.4]}
32. Bxc4 {[%clk 0:00:18.1]} 32... Qh5 {[%clk 0:00:22.1]} 33. f5 {[%clk
0:00:15.6]} 33... Qe8 {[%clk 0:00:20.3]} 34. Bd5 {[%clk 0:00:14.2]} 34... Ba5
{[%clk 0:00:18.6]} 35. Qd6 {[%clk 0:00:13.6]} 35... Qg8 {[%clk 0:00:16.9]} 36.
Bxg8 {[%clk 0:00:13.2]} 36... Kxg8 {[%clk 0:00:17.5]} 37. Qf8# {[%clk
0:00:12.7]} 1-0

[Event "*** SCC Grand Prix: Titled Tuesday Blitz"]
[Site "Chess.com"]
[Date "2020.08.04"]
[Round "2"]
[White "Manukyan_Artak"]
[Black "fridaywins"]
[Result "1-0"]
[WhiteElo "2454"]
[BlackElo "2252"]
[TimeControl "180+1"]
[EndTime "14:02:37 PDT"]
[Termination "Manukyan_Artak won by resignation"]

1. e4 {[%clk 0:03:00.9]} 1... e5 {[%clk 0:02:59.3]} 2. Nf3 {[%clk 0:03:00.4]}
2... Nc6 {[%clk 0:02:59.8]} 3. d4 {[%clk 0:03:00.5]} 3... exd4 {[%clk
0:02:58.9]} 4. Nxd4 {[%clk 0:03:01.4]} 4... Nf6 {[%clk 0:02:59.2]} 5. Nxc6
{[%clk 0:03:01.5]} 5... bxc6 {[%clk 0:02:59.4]} 6. e5 {[%clk 0:03:01.8]} 6...
Ne4 {[%clk 0:02:54.2]} 7. Bd3 {[%clk 0:02:58.5]} 7... Nc5 {[%clk 0:02:53.9]} 8.
O-O {[%clk 0:02:57.6]} 8... Nxd3 {[%clk 0:02:50.9]} 9. Qxd3 {[%clk 0:02:53.4]}
9... Be7 {[%clk 0:02:46.3]} 10. Nc3 {[%clk 0:02:50.8]} 10... O-O {[%clk
0:02:44.4]} 11. Bf4 {[%clk 0:02:50.5]} 11... d5 {[%clk 0:02:40.8]} 12. exd6
{[%clk 0:02:49.5]} 12... cxd6 {[%clk 0:02:40.9]} 13. Rad1 {[%clk 0:02:40.6]}
13... d5 {[%clk 0:02:38.8]} 14. Na4 {[%clk 0:02:29.5]} 14... Qa5 {[%clk
0:02:10]} 15. Qb3 {[%clk 0:02:09.8]} 15... Ba6 {[%clk 0:02:01.2]} 16. Rfe1
{[%clk 0:02:09.3]} 16... Bc4 {[%clk 0:01:58.1]} 17. Qg3 {[%clk 0:02:01.8]} 17...
Rfe8 {[%clk 0:01:42.1]} 18. b3 {[%clk 0:01:57.1]} 18... Bb5 {[%clk 0:01:41.5]}
19. Qc3 {[%clk 0:01:05.7]} 19... Bb4 {[%clk 0:01:38.9]} 20. Rxe8+ {[%clk
0:01:03.4]} 20... Rxe8 {[%clk 0:01:38.1]} 21. Qg3 {[%clk 0:00:59]} 21... Bxa4
{[%clk 0:01:37.4]} 22. bxa4 {[%clk 0:00:59]} 22... Bd6 {[%clk 0:01:36.3]} 23. h4
{[%clk 0:00:56.8]} 23... Bf8 {[%clk 0:01:19.7]} 24. Qb3 {[%clk 0:00:32.3]} 24...
Re1+ {[%clk 0:01:18.7]} 25. Rxe1 {[%clk 0:00:32.5]} 25... Qxe1+ {[%clk
0:01:19.6]} 26. Kh2 {[%clk 0:00:33.3]} 26... Qxf2 {[%clk 0:01:20]} 27. Bg3
{[%clk 0:00:33.7]} 27... Qb6 {[%clk 0:01:19.9]} 28. Qd3 {[%clk 0:00:31.2]} 28...
d4 {[%clk 0:01:18.5]} 29. c3 {[%clk 0:00:25.2]} 29... dxc3 {[%clk 0:01:14.9]}
30. Qxc3 {[%clk 0:00:26.1]} 30... h6 {[%clk 0:01:13.3]} 31. a5 {[%clk 0:00:19]}
31... Qb4 {[%clk 0:01:13.3]} 32. Qxc6 {[%clk 0:00:17.2]} 32... Qxa5 {[%clk
0:01:13.3]} 33. a4 {[%clk 0:00:17.8]} 33... h5 {[%clk 0:01:09.8]} 34. Qb5 {[%clk
0:00:16.9]} 34... Qxb5 {[%clk 0:01:08.8]} 35. axb5 {[%clk 0:00:17.8]} 35... Bc5
{[%clk 0:01:08.1]} 36. Be5 {[%clk 0:00:17.4]} 36... f6 {[%clk 0:01:08]} 37. Bc3
{[%clk 0:00:16.8]} 37... Kf7 {[%clk 0:01:08.9]} 38. Kh3 {[%clk 0:00:16]} 38...
Ke6 {[%clk 0:01:08.9]} 39. g4 {[%clk 0:00:16.9]} 39... g6 {[%clk 0:01:06.4]} 40.
gxh5 {[%clk 0:00:16.9]} 40... gxh5 {[%clk 0:01:07.3]} 41. Kg3 {[%clk 0:00:17.8]}
41... f5 {[%clk 0:01:08.1]} 42. Kf4 {[%clk 0:00:17.1]} 42... Be7 {[%clk
0:01:08.2]} 43. Be1 {[%clk 0:00:16.8]} 43... Kf6 {[%clk 0:01:06.7]} 44. Bf2
{[%clk 0:00:16.4]} 44... Bd6+ {[%clk 0:01:05.7]} 45. Kf3 {[%clk 0:00:15.5]}
45... Bb8 {[%clk 0:01:05.2]} 46. Bd4+ {[%clk 0:00:15.6]} 46... Ke6 {[%clk
0:01:05.5]} 47. b6 {[%clk 0:00:13.6]} 47... Kd5 {[%clk 0:01:06.4]} 48. bxa7
{[%clk 0:00:12.5]} 48... Bxa7 {[%clk 0:00:59.7]} 49. Bxa7 {[%clk 0:00:13.4]}
49... Ke5 {[%clk 0:00:58.9]} 50. Bb8+ {[%clk 0:00:13.6]} 50... Kf6 {[%clk
0:00:58.5]} 51. Kf4 {[%clk 0:00:14.5]} 51... Kg6 {[%clk 0:00:58.4]} 52. Be5
{[%clk 0:00:15]} 1-0

[Event "*** SCC Grand Prix: Titled Tuesday Blitz"]
[Site "Chess.com"]
[Date "2020.08.04"]
[Round "2"]
[White "1f3_2g41-0"]
[Black "LubovMarkelova"]
[Result "1-0"]
[WhiteElo "2443"]
[BlackElo "2233"]
[TimeControl "180+1"]
[EndTime "14:02:38 PDT"]
[Termination "1f3_2g41-0 won by resignation"]

1. e4 {[%clk 0:02:59.6]} 1... e5 {[%clk 0:02:59.7]} 2. Nf3 {[%clk 0:02:59.6]}
2... Nc6 {[%clk 0:03:00.3]} 3. Bb5 {[%clk 0:03:00.1]} 3... a6 {[%clk 0:03:00.5]}
4. Ba4 {[%clk 0:03:00.2]} 4... Nf6 {[%clk 0:03:00.7]} 5. O-O {[%clk 0:02:59.3]}
5... b5 {[%clk 0:03:01.2]} 6. Bb3 {[%clk 0:02:59.2]} 6... Bc5 {[%clk 0:03:02.1]}
7. c3 {[%clk 0:02:58.7]} 7... d6 {[%clk 0:03:02.4]} 8. d4 {[%clk 0:02:59.2]}
8... Bb6 {[%clk 0:03:03]} 9. Re1 {[%clk 0:02:59.7]} 9... O-O {[%clk 0:03:01.7]}
10. Bg5 {[%clk 0:03:00.2]} 10... h6 {[%clk 0:03:01.7]} 11. Bh4 {[%clk
0:03:00.2]} 11... Bg4 {[%clk 0:02:58.5]} 12. h3 {[%clk 0:02:42.6]} 12... Bxf3
{[%clk 0:02:41.9]} 13. Qxf3 {[%clk 0:02:43.5]} 13... exd4 {[%clk 0:02:41.8]} 14.
Bxf6 {[%clk 0:02:42.7]} 14... Qxf6 {[%clk 0:02:41.2]} 15. Qxf6 {[%clk
0:02:42.6]} 15... gxf6 {[%clk 0:02:41.5]} 16. Bd5 {[%clk 0:02:43]} 16... Ne5
{[%clk 0:02:27.2]} 17. Bxa8 {[%clk 0:02:42.5]} 17... Rxa8 {[%clk 0:02:23.4]} 18.
Rd1 {[%clk 0:02:37.2]} 18... Nc4 {[%clk 0:01:59.5]} 19. b3 {[%clk 0:02:31.1]}
19... dxc3 {[%clk 0:01:49.9]} 20. Nxc3 {[%clk 0:02:29.4]} 20... Ne5 {[%clk
0:01:42.8]} 21. Nd5 {[%clk 0:02:27.9]} 21... Nd7 {[%clk 0:01:42.5]} 22. Nxb6
{[%clk 0:02:26.1]} 22... Nxb6 {[%clk 0:01:42.2]} 23. Rac1 {[%clk 0:02:26.8]}
23... Ra7 {[%clk 0:01:41]} 24. Rc6 {[%clk 0:02:26.6]} 24... Kf8 {[%clk 0:01:40]}
25. f4 {[%clk 0:02:25.3]} 25... Ke7 {[%clk 0:01:39.3]} 26. Kf2 {[%clk
0:02:25.3]} 26... Nd7 {[%clk 0:01:29.8]} 27. b4 {[%clk 0:02:20.4]} 27... Nb6
{[%clk 0:01:28.6]} 28. g4 {[%clk 0:02:15.4]} 28... Nc4 {[%clk 0:01:27.9]} 29.
Rd4 {[%clk 0:02:03.5]} 29... Kd7 {[%clk 0:01:24.4]} 30. Rc5 {[%clk 0:02:03.6]}
30... Ke7 {[%clk 0:01:10.7]} 31. Rh5 {[%clk 0:02:02.2]} 31... c6 {[%clk
0:01:10.7]} 32. Rxh6 {[%clk 0:01:58.3]} 32... a5 {[%clk 0:01:11.2]} 33. bxa5
{[%clk 0:01:58.2]} 33... Rxa5 {[%clk 0:01:11]} 34. g5 {[%clk 0:01:57.4]} 34...
Rxa2+ {[%clk 0:01:10.3]} 35. Kg3 {[%clk 0:01:57.4]} 35... Ra3+ {[%clk
0:01:09.7]} 36. Kg4 {[%clk 0:01:57.3]} 36... Ne3+ {[%clk 0:01:07.4]} 37. Kh4
{[%clk 0:01:42.5]} 37... Ng2+ {[%clk 0:00:56.6]} 38. Kg4 {[%clk 0:01:42.1]}
38... Ne3+ {[%clk 0:00:53.8]} 39. Kh5 {[%clk 0:01:42.4]} 39... fxg5 {[%clk
0:00:41.4]} 40. Kxg5 {[%clk 0:01:40.7]} 40... d5 {[%clk 0:00:39.6]} 41. exd5
{[%clk 0:01:38.5]} 41... cxd5 {[%clk 0:00:37.4]} 42. Rb6 {[%clk 0:01:36.4]}
42... Nc4 {[%clk 0:00:32.7]} 43. Rxb5 {[%clk 0:01:34.5]} 43... Rxh3 {[%clk
0:00:31.3]} 44. Rbxd5 {[%clk 0:01:34.6]} 44... Ne3 {[%clk 0:00:29.7]} 45. Re5+
{[%clk 0:01:34.6]} 45... Kf8 {[%clk 0:00:28.6]} 46. f5 {[%clk 0:01:04.6]} 46...
Rh1 {[%clk 0:00:18.2]} 47. Rd8+ {[%clk 0:00:59.4]} 47... Kg7 {[%clk 0:00:18.1]}
48. f6+ {[%clk 0:00:59.9]} 48... Kh7 {[%clk 0:00:18.2]} 49. Rxe3 {[%clk
0:01:00.5]} 49... Rh5+ {[%clk 0:00:16.4]} 50. Kg4 {[%clk 0:00:58.3]} 50... Rg5+
{[%clk 0:00:16.5]} 51. Kf4 {[%clk 0:00:57.3]} 51... Rh5 {[%clk 0:00:11.9]} 52.
Ree8 {[%clk 0:00:55.1]} 52... Kg6 {[%clk 0:00:09.5]} 53. Rd6 {[%clk 0:00:54.5]}
1-0

[Event "*** SCC Grand Prix: Titled Tuesday Blitz"]
[Site "Chess.com"]
[Date "2020.08.04"]
[Round "2"]
[White "ChessSwole"]
[Black "GukeshDommaraju"]
[Result "1-0"]
[WhiteElo "2357"]
[BlackElo "2646"]
[TimeControl "180+1"]
[EndTime "14:02:44 PDT"]
[Termination "ChessSwole won by resignation"]

1. b3 {[%clk 0:03:00.9]} 1... e5 {[%clk 0:02:59.6]} 2. Bb2 {[%clk 0:03:01.6]}
2... d6 {[%clk 0:03:00]} 3. e3 {[%clk 0:03:02.4]} 3... Nd7 {[%clk 0:03:00.4]} 4.
Nf3 {[%clk 0:03:02.8]} 4... g6 {[%clk 0:03:00.9]} 5. d4 {[%clk 0:03:03.2]} 5...
Bg7 {[%clk 0:03:01.4]} 6. Be2 {[%clk 0:03:01.4]} 6... Ngf6 {[%clk 0:03:01.2]} 7.
O-O {[%clk 0:03:01.9]} 7... e4 {[%clk 0:03:01]} 8. Nfd2 {[%clk 0:03:01]} 8...
O-O {[%clk 0:03:01.9]} 9. c4 {[%clk 0:03:00.7]} 9... Re8 {[%clk 0:03:02.5]} 10.
Nc3 {[%clk 0:03:01.1]} 10... Nf8 {[%clk 0:03:03]} 11. b4 {[%clk 0:02:55.5]}
11... h5 {[%clk 0:03:02.4]} 12. Nb3 {[%clk 0:02:54.2]} 12... h4 {[%clk
0:03:01.9]} 13. h3 {[%clk 0:02:54.1]} 13... N8h7 {[%clk 0:02:59.7]} 14. d5
{[%clk 0:02:53.4]} 14... Ng5 {[%clk 0:02:59]} 15. Nd4 {[%clk 0:02:53.4]} 15...
Nd7 {[%clk 0:02:57.6]} 16. Qc2 {[%clk 0:02:41.6]} 16... Ne5 {[%clk 0:02:52.2]}
17. Nxe4 {[%clk 0:02:07.1]} 17... Nxe4 {[%clk 0:02:40.9]} 18. Qxe4 {[%clk
0:02:06.8]} 18... Nxc4 {[%clk 0:02:39.4]} 19. Qc2 {[%clk 0:01:58.6]} 19... Nxb2
{[%clk 0:02:39.4]} 20. Qxb2 {[%clk 0:01:59.5]} 20... Qg5 {[%clk 0:02:39.5]} 21.
Kh1 {[%clk 0:01:58.5]} 21... Qxd5 {[%clk 0:02:35.8]} 22. Bf3 {[%clk 0:01:47.4]}
22... Qg5 {[%clk 0:02:32.1]} 23. Rac1 {[%clk 0:01:37.1]} 23... c6 {[%clk
0:02:17.5]} 24. Qd2 {[%clk 0:01:27.3]} 24... Be5 {[%clk 0:02:04.4]} 25. b5
{[%clk 0:01:23.1]} 25... c5 {[%clk 0:02:03.9]} 26. Ne2 {[%clk 0:01:22.2]} 26...
Be6 {[%clk 0:01:47.4]} 27. Bxb7 {[%clk 0:01:20.7]} 27... Rab8 {[%clk 0:01:43.5]}
28. Bc6 {[%clk 0:01:20.8]} 28... Qf5 {[%clk 0:01:32.6]} 29. f4 {[%clk
0:01:13.9]} 29... Bg7 {[%clk 0:01:29.6]} 30. e4 {[%clk 0:01:10.3]} 30... Qf6
{[%clk 0:01:30]} 31. Bxe8 {[%clk 0:01:08.6]} 31... Rxe8 {[%clk 0:01:30.9]} 32.
Qxd6 {[%clk 0:01:08.6]} 32... Qb2 {[%clk 0:01:30.9]} 33. Rfe1 {[%clk 0:00:55.5]}
33... Bxa2 {[%clk 0:01:23.2]} 34. Qxc5 {[%clk 0:00:53.9]} 34... Rxe4 {[%clk
0:01:19.3]} 35. Ng1 {[%clk 0:00:24.6]} 35... Rxf4 {[%clk 0:01:05.2]} 36. Rc2
{[%clk 0:00:24.8]} 36... Qb3 {[%clk 0:01:01.2]} 37. Rce2 {[%clk 0:00:21.7]}
37... Rf5 {[%clk 0:00:55.4]} 38. Qxa7 {[%clk 0:00:19.9]} 38... Bb1 {[%clk
0:00:52.9]} 39. b6 {[%clk 0:00:16.7]} 39... Rb5 {[%clk 0:00:52]} 40. Re3 {[%clk
0:00:13.2]} 40... Qb4 {[%clk 0:00:48.4]} 41. Re8+ {[%clk 0:00:11.7]} 41... Kh7
{[%clk 0:00:48.1]} 42. Qxf7 {[%clk 0:00:11.6]} 42... Rxb6 {[%clk 0:00:42.6]} 43.
R8e7 {[%clk 0:00:11.9]} 43... Qd4 {[%clk 0:00:29]} 44. R1e5 {[%clk 0:00:12.3]}
1-0

[Event "*** SCC Grand Prix: Titled Tuesday Blitz"]
[Site "Chess.com"]
[Date "2020.08.04"]
[Round "2"]
[White "QuintilianoR"]
[Black "hansen"]
[Result "0-1"]
[WhiteElo "2646"]
[BlackElo "2993"]
[TimeControl "180+1"]
[EndTime "14:02:46 PDT"]
[Termination "hansen won on time"]

1. Nf3 {[%clk 0:03:00.9]} 1... d5 {[%clk 0:02:59.7]} 2. e3 {[%clk 0:03:00.4]}
2... Nf6 {[%clk 0:02:59.8]} 3. c4 {[%clk 0:02:59.9]} 3... e6 {[%clk 0:03:00.1]}
4. Nc3 {[%clk 0:02:59.1]} 4... a6 {[%clk 0:02:57.9]} 5. d4 {[%clk 0:02:55.3]}
5... Nbd7 {[%clk 0:02:41.7]} 6. cxd5 {[%clk 0:02:43.6]} 6... exd5 {[%clk
0:02:40]} 7. Bd3 {[%clk 0:02:42.1]} 7... Bd6 {[%clk 0:02:39.7]} 8. O-O {[%clk
0:02:41.3]} 8... O-O {[%clk 0:02:40.2]} 9. b3 {[%clk 0:02:41.1]} 9... Re8 {[%clk
0:02:40.2]} 10. Bb2 {[%clk 0:02:39.9]} 10... b6 {[%clk 0:02:35.1]} 11. Rc1
{[%clk 0:02:34.4]} 11... Bb7 {[%clk 0:02:33.3]} 12. Ne2 {[%clk 0:02:30.7]} 12...
Ne4 {[%clk 0:02:33.2]} 13. Qc2 {[%clk 0:02:23.5]} 13... Qf6 {[%clk 0:02:32.4]}
14. Ne5 {[%clk 0:02:16.8]} 14... Qe7 {[%clk 0:02:18]} 15. Ng3 {[%clk 0:02:05.8]}
15... Ndf6 {[%clk 0:02:06.4]} 16. Qe2 {[%clk 0:01:39.6]} 16... Nxg3 {[%clk
0:02:01.6]} 17. hxg3 {[%clk 0:01:37.8]} 17... c5 {[%clk 0:01:58.5]} 18. Ng4
{[%clk 0:01:14.3]} 18... Ne4 {[%clk 0:01:56.7]} 19. dxc5 {[%clk 0:01:11.8]}
19... bxc5 {[%clk 0:01:55.8]} 20. Nh2 {[%clk 0:00:32.9]} 20... Qg5 {[%clk
0:01:47.9]} 21. Nf3 {[%clk 0:00:24.1]} 21... Qh6 {[%clk 0:01:47.8]} 22. Nh4
{[%clk 0:00:21.4]} 22... Bc8 {[%clk 0:01:22.2]} 23. Rfd1 {[%clk 0:00:17.9]}
23... Nxg3 {[%clk 0:01:13.8]} 24. fxg3 {[%clk 0:00:15.6]} 24... Bxg3 {[%clk
0:01:14.7]} 25. Nf3 {[%clk 0:00:14.7]} 25... Rxe3 {[%clk 0:00:57.1]} 26. Qd2
{[%clk 0:00:12.9]} 26... Bg4 {[%clk 0:00:52]} 27. Rf1 {[%clk 0:00:11.3]} 27...
Bd6 {[%clk 0:00:18.9]} 28. Qf2 {[%clk 0:00:09.1]} 28... Rae8 {[%clk 0:00:15.9]}
29. Rcd1 {[%clk 0:00:07.2]} 29... Bxf3 {[%clk 0:00:09.3]} 30. gxf3 {[%clk
0:00:08.1]} 30... Bf4 {[%clk 0:00:06.2]} 31. Bf5 {[%clk 0:00:08.1]} 31... Rxf3
{[%clk 0:00:05.5]} 32. Qg2 {[%clk 0:00:07.1]} 32... Be3+ {[%clk 0:00:05.5]} 0-1

[Event "*** SCC Grand Prix: Titled Tuesday Blitz"]
[Site "Chess.com"]
[Date "2020.08.04"]
[Round "2"]
[White "dretch"]
[Black "Lupul_Cenusiu"]
[Result "1-0"]
[WhiteElo "2810"]
[BlackElo "2512"]
[TimeControl "180+1"]
[EndTime "14:02:47 PDT"]
[Termination "dretch won by resignation"]

1. d4 {[%clk 0:02:55.2]} 1... Nf6 {[%clk 0:02:59.2]} 2. c4 {[%clk 0:02:54.8]}
2... c5 {[%clk 0:02:59.3]} 3. d5 {[%clk 0:02:54.7]} 3... e6 {[%clk 0:02:59.6]}
4. Nc3 {[%clk 0:02:54.9]} 4... d6 {[%clk 0:02:59.9]} 5. e4 {[%clk 0:02:55]} 5...
Be7 {[%clk 0:03:00.2]} 6. Nf3 {[%clk 0:02:53.9]} 6... O-O {[%clk 0:03:00.1]} 7.
Be2 {[%clk 0:02:49.8]} 7... a6 {[%clk 0:02:57.6]} 8. O-O {[%clk 0:02:47.2]} 8...
exd5 {[%clk 0:02:57.1]} 9. exd5 {[%clk 0:02:46.9]} 9... Bf5 {[%clk 0:02:55.9]}
10. Nh4 {[%clk 0:02:46.5]} 10... Bc8 {[%clk 0:02:54.4]} 11. g3 {[%clk
0:02:41.3]} 11... Bh3 {[%clk 0:02:49.3]} 12. Re1 {[%clk 0:02:41.4]} 12... Nbd7
{[%clk 0:02:42.6]} 13. Bf4 {[%clk 0:02:38.5]} 13... Re8 {[%clk 0:02:38.6]} 14.
Qc2 {[%clk 0:02:29.4]} 14... g6 {[%clk 0:02:34.4]} 15. Rad1 {[%clk 0:02:11.6]}
15... Rb8 {[%clk 0:02:28.9]} 16. Qc1 {[%clk 0:02:07.6]} 16... Bf8 {[%clk
0:02:20.2]} 17. Ng2 {[%clk 0:02:02.4]} 17... Qa5 {[%clk 0:01:48.1]} 18. Bd2
{[%clk 0:01:53.3]} 18... Bxg2 {[%clk 0:01:41.9]} 19. Kxg2 {[%clk 0:01:51.8]}
19... Qc7 {[%clk 0:01:41.4]} 20. Qc2 {[%clk 0:01:46]} 20... Ne5 {[%clk
0:01:36.9]} 21. f4 {[%clk 0:01:33.1]} 21... Neg4 {[%clk 0:01:25.6]} 22. Bf3
{[%clk 0:01:29.1]} 22... Nh6 {[%clk 0:01:25.1]} 23. Ne4 {[%clk 0:01:16.4]} 23...
Nxe4 {[%clk 0:01:24.7]} 24. Bxe4 {[%clk 0:01:17.3]} 24... Qd7 {[%clk 0:01:12.8]}
25. Bc3 {[%clk 0:01:07.8]} 25... b5 {[%clk 0:01:09.3]} 26. b3 {[%clk 0:01:04.1]}
26... bxc4 {[%clk 0:00:50.3]} 27. bxc4 {[%clk 0:01:03.8]} 27... Nf5 {[%clk
0:00:49.2]} 28. Bxf5 {[%clk 0:01:02.9]} 28... Qxf5 {[%clk 0:00:47.2]} 29. Qxf5
{[%clk 0:01:02.2]} 29... gxf5 {[%clk 0:00:47.3]} 30. Kf3 {[%clk 0:00:55.8]}
30... Rxe1 {[%clk 0:00:42.8]} 31. Rxe1 {[%clk 0:00:54.1]} 31... Bg7 {[%clk
0:00:42.6]} 32. Ba5 {[%clk 0:00:50.1]} 32... Bf6 {[%clk 0:00:31.7]} 33. Bc7
{[%clk 0:00:24]} 33... Rb4 {[%clk 0:00:30.7]} 34. Bxd6 {[%clk 0:00:20.6]} 34...
Rxc4 {[%clk 0:00:30.2]} 35. Re8+ {[%clk 0:00:19.1]} 35... Kg7 {[%clk 0:00:29.4]}
36. Be5 {[%clk 0:00:19.4]} 36... Bxe5 {[%clk 0:00:23.8]} 37. fxe5 {[%clk
0:00:19]} 37... Rd4 {[%clk 0:00:24]} 38. d6 {[%clk 0:00:19.1]} 38... c4 {[%clk
0:00:19]} 39. Rc8 {[%clk 0:00:14.4]} 39... f6 {[%clk 0:00:17]} 40. e6 {[%clk
0:00:13.7]} 40... c3 {[%clk 0:00:14.3]} 41. e7 {[%clk 0:00:12.8]} 1-0